fUST/lending_fUST_20260107
["ID","MTS","AMOUNT","RATE_DAILY","PERIOD"]
[400637128,1767756640499,-500.0,0.00018205,2]
[400637129,1767756640512,-244.25610141,0.00018342,2]
[400637130,1767756640523,-500.0,0.00018342,2]
[400637131,1767756640534,-500.0,0.00018479,2]
[400637132,1767756640545,-192.17111,0.00018493,2]
[400637133,1767756640556,-500.0,0.00018616,2]
[400637134,1767756640567,-5500.0,0.00018752,2]
[400637135,1767756640749,-500.0,0.00018753,2]
[400637136,1767756640770,-184.0,0.00018767,3]
[400637137,1767756640780,-1000.77837036,0.00018889,9]
[400637138,1767756640790,-500.0,0.0001889,2]
[400637139,1767756640800,-303.45210145,0.000189,2]
[400637140,1767756640810,-382.3556246,0.00019,2]
[400637141,1767756640819,-335.69967713,0.00019,2]
[400637142,1767756640828,-2603.49,0.00019,2]
[400637143,1767756640837,-17949.00191859,0.00019,2]
[400637144,1767756640846,-7000.62506532,0.00019,2]
[400637145,1767756640855,-500.0,0.00019027,2]
[400637146,1767756640864,-265.98770325,0.00019132,2]
[400637147,1767756640874,-500.0,0.00019164,2]
[400637148,1767756640883,-882.2314,0.00019178,2]
[400637149,1767756640892,-882.2314,0.00019178,4]
[400637150,1767756640901,-900.0,0.00019178,2]
[400637151,1767756640911,-243.07,0.000192,2]
[400637152,1767756640920,-258.12,0.000192,2]
[400637153,1767756640929,-2200.51,0.000192,2]
[400637154,1767756640938,-25963.54,0.000192,2]
[400637155,1767756640947,-167.78,0.000192,2]
[400637156,1767756640956,-497.81118302,0.00019205,5]
[400637157,1767756640965,-152.02997996,0.00019206,2]
[400637158,1767756640975,-3097.88658418,0.00019234,2]
[400637159,1767756640984,-6000.0,0.000193,2]
[400637160,1767756640993,-500.0,0.00019301,2]
[400637161,1767756641002,-152.28064023,0.00019343,2]
[400637162,1767756641011,-500.0,0.00019438,2]
[400637163,1767756641020,-158.0,0.00019575,2]
[400637164,1767756641029,-1549.57669197,0.00019726,2]
[400637165,1767756641043,-6500.0,0.00019848,2]
[400637166,1767756641052,-1972.0,0.0002,2]
[400637167,1767756641061,-194.55241683,0.0002,2]
[400637168,1767756641071,-6963.0,0.0002,2]
[400637169,1767756641081,-181.25348447,0.0002,2]
[400637170,1767756641091,-1815.6497538,0.0002,2]
[400637171,1767756641100,-632.73035631,0.0002,2]
[400637172,1767756641110,-14686.18217338,0.0002,2]
[400637173,1767756641120,-300.05779371,0.0002,7]
[400637174,1767756641130,-371.23034443,0.0002,2]
[400637175,1767756641139,-599.02649061,0.0002,2]
[400637176,1767756641150,-696.84890501,0.0002,2]
[400637177,1767756641159,-23000.0,0.0002,2]
[400637178,1767756641170,-202.52017028,0.0002,2]
[400637179,1767756641179,-159.84863644,0.0002,2]
[400637180,1767756641187,-210.20532748,0.0002,2]
[400637181,1767756641196,-346.1,0.00020115,2]
[400637182,1767756641205,-459.50208546,0.0002013,2]
[400637183,1767756641215,-1237.51051289,0.00020311,12]
[400637184,1767756641224,-7000.0,0.00020396,2]
[400637185,1767756641238,-1387.87898167,0.0002061,2]
[400637186,1767756641250,-256.20863618,0.000209,2]
[400637187,1767756641260,-5884.85663458,0.00020944,2]
[400637188,1767756641268,-277.06974618,0.00021,2]
[400637189,1767756641278,-1081.32871409,0.00021,10]
[400637190,1767756641287,-50000.0,0.00021,2]
[400637191,1767756641296,-297.07717505,0.00021132,2]
[400637192,1767756641306,-1041.66666667,0.00021489,2]
[400637193,1767756641316,-1038.80075693,0.000215,2]
[400637194,1767756641327,-12849.42882741,0.000215,2]
[400637195,1767756641337,-147961.93504225,0.000215,2]
[400637196,1767756641347,-165.0,0.00021507,4]
[400637197,1767756641357,-346.1,0.00021691,2]
[400637198,1767756641368,-1488.37209534,0.00021733,15]
[400637199,1767756641377,-192.17111,0.00021918,2]
[400637200,1767756641386,-568.10876052,0.0002196,10]
[400637201,1767756641396,-90000.0,0.00022,2]
[400637202,1767756641406,-171.84386487,0.00022,10]
[400637203,1767756641417,-19751.71579539,0.00022,7]
[400637204,1767756641427,-828.88420571,0.00022,20]
[400637205,1767756641436,-33706.85557129,0.00022,2]
[400637206,1767756641446,-505.56,0.000221,2]
[400637207,1767756641455,-1908.17,0.000221,7]
[400637208,1767756641464,-3097.88658418,0.00022102,2]
[400637209,1767756641473,-25963.54,0.000222,2]
[400637210,1767756641482,-243.07,0.000224,7]
[400637211,1767756641493,-258.12,0.000224,7]
[400637212,1767756641503,-300.0,0.00022466,2]
[400637213,1767756641514,-2200.51,0.000225,14]
[400637214,1767756641523,-1032.71087693,0.000225,2]
[400637215,1767756641532,-600.0,0.00022819,10]
[400637216,1767756641542,-450.0,0.00023014,2]
[400637217,1767756641553,-328.16664686,0.00023132,2]
[400637218,1767756641563,-1752.00049507,0.00023155,17]
[400637219,1767756641573,-346.1,0.00023268,2]
[400637220,1767756641583,-500.0,0.00023268,2]
[400637221,1767756641593,-2200.0,0.00023377,2]
[400637222,1767756641603,-2200.0,0.00023473,2]
[400637223,1767756641612,-500.0,0.00023494,2]
[400637224,1767756641621,-600.0,0.00023562,2]
[400637225,1767756641630,-500.0,0.00023662,2]
[400637226,1767756641640,-500.0,0.00023678,2]
[400637227,1767756641649,-500.0,0.00023768,2]
[400637228,1767756641659,-500.0,0.00023855,2]
[400637229,1767756641668,-23906.54289923,0.00024,2]
[400637230,1767756641677,-245.28508092,0.00024,60]
[400637231,1767756641687,-1734.693215,0.00024,2]
[400637232,1767756641696,-465.43647205,0.00024,2]
[400637233,1767756641705,-618.86,0.00024,14]
[400637234,1767756641715,-1041.66666667,0.00024,7]
[400637235,1767756641724,-750.0,0.0002411,2]
[400637236,1767756641734,-500.0,0.00024122,2]
[400637237,1767756641742,-511401.99227846,0.00024142,2]
[400637238,1767756641752,-151.0,0.00024142,2]
[400637239,1767756641761,-234.769236,0.00024142,2]
[400637240,1767756641770,-151.0,0.00024142,2]
[400637241,1767756641779,-234.769236,0.00024142,2]
[400637242,1767756641788,-234.769236,0.00024142,2]
[400637243,1767756641798,-234.769236,0.00024142,2]
[400637244,1767756641807,-151.0,0.00024142,2]
[400637245,1767756641816,-151.0,0.00024142,2]
[400637246,1767756641825,-151.0,0.00024142,2]
[400637247,1767756641834,-151.0,0.00024142,2]
[400637248,1767756641843,-151.0,0.00024142,2]
[400637249,1767756641851,-151.0,0.00024142,2]
[400637250,1767756641860,-793.51974,0.00024142,2]
[400637251,1767756641869,-793.51974,0.00024142,2]
[400637252,1767756641878,-550.359004,0.00024142,2]
[400637253,1767756641887,-793.51974,0.00024142,2]
[400637254,1767756641895,-793.51974,0.00024142,2]
[400637255,1767756641906,-550.359004,0.00024142,2]
[400637256,1767756641916,-550.359004,0.00024142,2]
[400637257,1767756641926,-550.359004,0.00024142,2]
[400637258,1767756641936,-193.751702,0.00024142,2]
[400637259,1767756641945,-151.0,0.00024142,2]
[400637260,1767756641954,-513.633676,0.00024142,2]
[400637261,1767756641966,-155.381927,0.00024142,2]
[400637262,1767756641977,-513.633676,0.00024142,2]
[400637263,1767756641986,-513.633676,0.00024142,2]
[400637264,1767756641996,-30240.28138531,0.000242,2]
[400637265,1767756642007,-2200.0,0.00024488,2]
[400637266,1767756642016,-25963.54,0.000245,2]
[400637267,1767756642026,-2027.32376935,0.00024578,20]
[400637268,1767756642037,-156724.58563049,0.0002465,2]
[400637269,1767756642049,-513.79712507,0.0002465,2]
[400637270,1767756642058,-900.0,0.00024658,2]
[400637271,1767756642068,-380.0,0.00024658,2]
[400637272,1767756642079,-200.0,0.00024658,2]
[400637273,1767756642089,-500.0,0.00024658,2]
[400637274,1767756642099,-1139.0,0.00024756,7]
[400637275,1767756642112,-16821.80898001,0.00024774,2]
[400637276,1767756642122,-175.0,0.00024795,14]
[400637277,1767756642133,-500.0,0.00024795,2]
[400637278,1767756642144,-243.07,0.000248,7]
[400637279,1767756642154,-258.12,0.000248,7]
[400637280,1767756642163,-187.20106237,0.000248,2]
[400637281,1767756642173,-6775.62772894,0.00024832,2]
[400637282,1767756642183,-346.1,0.00024844,2]
[400637283,1767756642192,-500.0,0.00024858,2]
[400637284,1767756642202,-500.0,0.00024894,2]
[400637285,1767756642211,-2200.51,0.000249,14]
[400637286,1767756642221,-151.0,0.000249,7]
[400637287,1767756642231,-151.0,0.000249,7]
[400637288,1767756642240,-234.643774,0.000249,7]
[400637289,1767756642249,-155.076774,0.000249,7]
[400637290,1767756642260,-151.0,0.000249,7]
[400637291,1767756642270,-151.0,0.000249,7]
[400637292,1767756642280,-151.0,0.000249,7]
[400637293,1767756642289,-151.0,0.000249,7]
[400637294,1767756642299,-151.0,0.000249,7]
[400637295,1767756642308,-151.0,0.000249,7]
[400637296,1767756642318,-189.060693,0.000249,7]
[400637297,1767756642326,-151.0,0.000249,7]
[400637298,1767756642337,-609868.95295812,0.000249,2]
[400637299,1767756642435,3398.7973873,0.00012667,2]
[400637301,1767756642483,-533.59581901,0.00013364,2]
[400637308,1767756643839,151.0,0.000301,120]
[400637309,1767756643948,-4466.40418099,0.00013364,2]
[400637310,1767756643957,-513.633676,0.00024142,2]
[400637311,1767756643966,-151.0,0.00024142,2]
[400637312,1767756643975,-151.0,0.00024142,2]
[400637313,1767756643984,-21261.31524488,0.000249,2]
[400637314,1767756643994,-151.0,0.000249,7]
[400637315,1767756644003,-151.0,0.000249,7]
[400637316,1767756644012,-488.662213,0.000249,7]
[400637317,1767756644022,-488.662213,0.000249,7]
[400637318,1767756644031,-488.662213,0.000249,7]
[400637319,1767756644044,-153.895656,0.000249,7]
[400637320,1767756644053,-151.0,0.000249,2]
[400637321,1767756644062,-488.662213,0.000249,7]
[400637322,1767756644074,-151.0,0.000249,7]
[400637323,1767756644084,-165.083309,0.000249,7]
[400637324,1767756644093,-683.733146,0.000249,7]
[400637325,1767756644103,-683.733146,0.000249,7]
[400637326,1767756644114,-683.733146,0.000249,7]
[400637327,1767756644123,-683.733146,0.000249,7]
[400637328,1767756644132,-2080.429235,0.000249,7]
[400637329,1767756644141,-2080.429235,0.000249,7]
[400637330,1767756644150,-255.270679,0.000249,7]
[400637331,1767756644159,-2080.429235,0.000249,7]
[400637332,1767756644168,-2080.429235,0.000249,7]
[400637333,1767756644177,-151.0,0.000249,7]
[400637334,1767756644186,-151.0,0.000249,7]
[400637335,1767756644195,-1270.351507,0.000249,7]
[400637336,1767756644204,-1270.351507,0.000249,7]
[400637337,1767756644213,-1270.351507,0.000249,7]
[400637338,1767756644222,-1270.351507,0.000249,7]
[400637339,1767756644231,-762.082759,0.000249,7]
[400637340,1767756644240,-762.082759,0.000249,7]
[400637341,1767756644249,-269.462573,0.000249,7]
[400637342,1767756644258,-258.331512,0.000249,7]
[400637343,1767756644268,-762.082759,0.000249,7]
[400637344,1767756644277,-269.462573,0.000249,7]
[400637345,1767756644286,-258.331512,0.000249,7]
[400637346,1767756644296,-762.082759,0.000249,7]
[400637347,1767756644306,-269.462573,0.000249,7]
[400637348,1767756644317,-258.331512,0.000249,7]
[400637349,1767756644326,-269.462573,0.000249,7]
[400637350,1767756644335,-258.331512,0.000249,7]
[400637351,1767756644344,-151.0,0.000249,7]
[400637352,1767756644354,-151.0,0.000249,7]
[400637353,1767756644363,-151.0,0.000249,7]
[400637354,1767756644373,-234.769236,0.000249,7]
[400637355,1767756644382,-154.083239,0.000249,7]
[400637356,1767756644393,-234.769236,0.000249,7]
[400637357,1767756644403,-234.769236,0.000249,7]
[400637358,1767756644412,-234.769236,0.000249,7]
[400637359,1767756644422,-151.0,0.000249,7]
[400637360,1767756644431,-151.0,0.000249,7]
[400637361,1767756644440,-151.0,0.000249,7]
[400637362,1767756644451,-151.0,0.000249,7]
[400637363,1767756644462,-151.0,0.000249,7]
[400637364,1767756644471,-793.51974,0.000249,7]
[400637365,1767756644481,-793.51974,0.000249,7]
[400637366,1767756644491,-550.359004,0.000249,7]
[400637367,1767756644500,-793.51974,0.000249,7]
[400637368,1767756644510,-793.51974,0.000249,7]
[400637369,1767756644520,-550.359004,0.000249,7]
[400637370,1767756644531,-550.359004,0.000249,7]
[400637371,1767756644541,-550.359004,0.000249,7]
[400637372,1767756644552,-151.0,0.000249,7]
[400637373,1767756644563,-513.633676,0.000249,7]
[400637374,1767756644573,-513.633676,0.000249,7]
[400637375,1767756644583,-513.633676,0.000249,7]
[400637376,1767756644593,-513.633676,0.000249,7]
[400637377,1767756644602,-151.0,0.000249,7]
[400637378,1767756644611,-151.0,0.000249,7]
[400637379,1767756644620,-500.0,0.00024932,2]
[400637380,1767756644630,-3097.88658418,0.00024969,2]
[400637381,1767756644639,-170.28,0.00024972,2]
[400637382,1767756644648,-170.28,0.00024972,2]
[400637383,1767756644658,-21277.28102182,0.00025,15]
[400637384,1767756644670,-90251.37856757,0.00025,15]
[400637385,1767756644679,-1084.98194204,0.00025,2]
[400637386,1767756644688,-8640.00362976,0.00025,2]
[400637387,1767756645139,151.0,0.000301,120]
[400637392,1767756673907,171.3,8.678e-05,2]
[400637393,1767756674334,256.94,9.073e-05,2]
[400637394,1767756675254,342.59,9.467e-05,2]
[400637395,1767756675696,428.24,9.862e-05,2]
[400637396,1767756676099,513.89,0.00010256,2]
[400637397,1767756676512,599.53,0.0001065,2]
[400637398,1767756676930,685.18,0.00011045,2]
[400637399,1767756677377,770.83,0.00011439,2]
[400637400,1767756677796,856.48,0.00011834,2]
[400637401,1767756728873,751.0,0.00030136,120]
[400637402,1767756750808,194.52,8.86e-05,2]
[400637403,1767756751207,243.15,9.229e-05,2]
[400637404,1767756751627,291.78,9.598e-05,2]
[400637405,1767756752045,340.4,9.967e-05,2]
[400637406,1767756752466,389.03,0.00010336,2]
[400637407,1767756752910,437.66,0.00010705,2]
[400637408,1767756753844,79.6926127,0.00011075,2]
[400637409,1767756753870,406.5973873,0.00011075,2]
[400637420,1767756777885,1610.0,0.0003,120]
[400637423,1767756871723,5000.0,0.000129,2]
[400637424,1767756894215,164.72,9.672e-05,2]
[400637425,1767756894648,4428.6926127,0.000129,2]
[400637426,1767756894670,571.3073873,0.000129,2]
[400637427,1767756918015,5000.0,0.000129,2]
[400637429,1767756941745,4428.7026127,0.000129,2]
[400637430,1767756941769,571.2973873,0.000129,2]
[400637431,1767756960999,183.86,7.617e-05,2]
[400637432,1767756961426,245.15,7.948e-05,2]
[400637433,1767756961889,306.44,8.279e-05,2]
[400637434,1767756965946,367.73,8.61e-05,2]
[400637435,1767756966471,429.02,8.942e-05,2]
[400637436,1767756966889,490.31,9.273e-05,2]
[400637437,1767756967318,551.59,9.604e-05,2]
[400637438,1767756968377,612.88,9.935e-05,2]
[400637439,1767757038140,167.68,7.322e-05,2]
[400637440,1767757038545,251.53,7.654e-05,2]
[400637441,1767757038962,335.37,7.987e-05,2]
[400637442,1767757039900,419.21,8.32e-05,2]
[400637443,1767757040371,503.05,8.653e-05,2]
[400637444,1767757040798,586.9,8.986e-05,2]
[400637445,1767757041195,670.74,9.318e-05,2]
[400637446,1767757041619,754.58,9.651e-05,2]
[400637447,1767757042022,838.42,9.984e-05,2]
[400637454,1767757058307,5000.0,0.000129,2]
[400637455,1767757067206,472.53,0.000129,2]
[400637456,1767757067228,1093.48175538,0.000129,2]
[400637458,1767757080441,278.62,5.994e-05,2]
[400637459,1767757082752,5000.0,0.000129,2]
[400637460,1767757105572,3627.90824462,0.000129,2]
[400637461,1767757105594,1372.09175538,0.000129,2]
[400637462,1767757113404,3999.58676928,0.000129,2]
[400637463,1767757115767,157.32,8.612e-05,2]
[400637464,1767757116178,183.54,8.943e-05,2]
[400637465,1767757116642,209.76,9.274e-05,2]
[400637466,1767757117080,235.98,9.605e-05,2]
[400637467,1767757117645,262.2,9.937e-05,2]
[400637468,1767757129513,3579.53147534,0.000129,2]
[400637469,1767757129536,1420.46852466,0.000129,2]
[400637470,1767757137906,1000.41323072,0.000129,2]
[400637471,1767757146551,5000.0,0.000129,2]
[400637472,1767757170528,2579.12824462,0.000129,2]
[400637473,1767757170551,2420.87175538,0.000129,2]
[400637474,1767757183745,257.75,6.896e-05,2]
[400637475,1767757184139,386.63,7.21e-05,2]
[400637476,1767757184572,515.51,7.523e-05,2]
[400637477,1767757185004,644.38,7.836e-05,2]
[400637478,1767757185422,773.26,8.15e-05,2]
[400637479,1767757185822,902.13,8.463e-05,2]
[400637480,1767757186235,1031.01,8.777e-05,2]
[400637481,1767757187158,1159.89,9.09e-05,2]
[400637482,1767757187584,1288.76,9.404e-05,2]
[400637483,1767757192779,619.81824462,0.000129,2]
[400637484,1767757192804,4380.18175538,0.000129,2]
[400637485,1767757216148,5000.0,0.000129,2]
[400637486,1767757239426,619.82824462,0.000129,2]
[400637487,1767757239454,4380.17175538,0.000129,2]
[400637488,1767757254720,2232.39676928,0.000129,2]
[400637489,1767757260762,218.57,6.907e-05,2]
[400637490,1767757261220,327.86,7.22e-05,2]
[400637491,1767757261659,437.15,7.534e-05,2]
[400637492,1767757262078,546.43,7.848e-05,2]
[400637493,1767757262557,655.72,8.162e-05,2]
[400637494,1767757262712,1201.71147534,0.000129,2]
[400637495,1767757262735,3798.28852466,0.000129,2]
[400637496,1767757262903,765.01,8.476e-05,2]
[400637497,1767757263340,874.3,8.79e-05,2]
[400637498,1767757263747,983.58,9.104e-05,2]
[400637499,1767757264157,1092.87,9.418e-05,2]
[400637500,1767757279771,3040.6224948,0.00012388,2]
[400637501,1767757285653,1010.0,0.00030136,120]
[400637502,1767757285957,5000.0,0.000129,2]
[400637505,1767757301574,1959.3875052,0.000129,2]
[400637506,1767757301610,2263.73111631,0.000129,2]
[400637508,1767757309517,5000.0,0.000129,2]
[400637509,1767757332230,2736.27888369,0.000129,2]
[400637510,1767757332253,2263.72111631,0.000129,2]
[400637511,1767757336386,271.71,7.431e-05,2]
[400637512,1767757336840,407.56,7.768e-05,2]
[400637513,1767757337248,543.42,8.106e-05,2]
[400637514,1767757337695,679.27,8.444e-05,2]
[400637515,1767757338111,815.13,8.782e-05,2]
[400637516,1767757339055,950.98,9.12e-05,2]
[400637517,1767757339483,1086.84,9.457e-05,2]
[400637518,1767757339899,1222.69,9.795e-05,2]
[400637519,1767757340323,1358.54,0.00010133,2]
[400637521,1767757341024,400.14888369,0.000129,2]
[400637522,1767757341045,4599.85111631,0.000129,2]
[400637529,1767757364167,4664.63573974,0.000129,2]
[400637533,1767757372608,210.33387805,0.00025346,120]
[400637541,1767757402501,-555.79257742,0.00013097,2]
[400637542,1767757404168,-306.14216045,0.00013097,2]
[400637546,1767757413296,180.15,6.7e-05,2]
[400637547,1767757413546,360.29,7.019e-05,2]
[400637549,1767757414072,195.08314395,7.338e-05,2]
[400637550,1767757414096,345.35685605,7.338e-05,2]
[400637551,1767757414152,-240.44569934,0.00013097,2]
[400637552,1767757414477,720.59,7.657e-05,2]
[400637553,1767757414904,900.73,7.976e-05,2]
[400637554,1767757415337,1080.88,8.295e-05,2]
[400637556,1767757415894,1261.03,8.614e-05,2]
[400637557,1767757416705,1441.18,8.933e-05,2]
[400637558,1767757417127,1621.32,9.252e-05,2]
[400637559,1767757417548,1801.47,9.571e-05,2]
[400637560,1767757421911,-288.74286163,0.00013097,2]
[400637562,1767757423963,-228.08421647,0.00013097,2]
[400637577,1767757478081,-198.67561924,0.00013097,2]
[400637578,1767757480157,-226.17522684,0.00013097,2]
[400637581,1767757483186,-249.18485632,0.00013097,2]
[400637583,1767757485211,-303.21195072,0.00013097,2]
[400637585,1767757491854,151.28,6.689e-05,2]
[400637586,1767757492287,302.56,7.008e-05,2]
[400637588,1767757492701,373.61314395,7.326e-05,2]
[400637589,1767757492724,80.22685605,7.326e-05,2]
[400637590,1767757493017,-244.80662036,0.00013097,2]
[400637591,1767757493149,605.11,7.645e-05,2]
[400637592,1767757493623,756.39,7.964e-05,2]
[400637593,1767757494527,-304.0,0.00013097,2]
[400637594,1767757494636,907.67,8.282e-05,2]
[400637595,1767757495069,1058.95,8.601e-05,2]
[400637596,1767757495514,1210.23,8.919e-05,2]
[400637598,1767757495955,1361.51,9.238e-05,2]
[400637599,1767757496403,1512.79,9.556e-05,2]
[400637626,1767757570744,157.07,7.352e-05,2]
[400637627,1767757571159,209.43,7.671e-05,2]
[400637628,1767757571595,261.79,7.991e-05,2]
[400637629,1767757572020,314.15,8.311e-05,2]
[400637631,1767757572458,366.51,8.63e-05,2]
[400637632,1767757572876,418.87,8.95e-05,2]
[400637633,1767757573324,471.22,9.27e-05,2]
[400637634,1767757573754,523.58,9.589e-05,2]
[400637652,1767757642585,-267.68341874,0.00013031,2]
[400637653,1767757645843,159.36,9.124e-05,2]
[400637674,1767757713293,152.68,8.621e-05,2]
[400637675,1767757713710,171.77,8.929e-05,2]
[400637684,1767757749890,5000.0,0.000129,2]
[400637691,1767757779542,191.61,7.215e-05,2]
[400637692,1767757779960,255.49,7.528e-05,2]
[400637693,1767757780463,319.36,7.842e-05,2]
[400637694,1767757781029,383.23,8.156e-05,2]
[400637695,1767757781452,447.1,8.469e-05,2]
[400637696,1767757781850,510.97,8.783e-05,2]
[400637697,1767757782261,574.84,9.097e-05,2]
[400637699,1767757782687,638.71,9.41e-05,2]
[400637759,1767757838136,-5000.0,0.00013031,2]
[400637761,1767757838147,-169.26490207,0.00013097,2]
[400637763,1767757838157,-182.179,0.00013229,2]
[400637765,1767757838167,-300.0,0.00013272,2]
[400637767,1767757838177,-500.0,0.00013273,2]
[400637769,1767757838188,-500.0,0.00013273,2]
[400637771,1767757838198,-500.0,0.00013273,2]
[400637773,1767757838208,-500.0,0.00013273,2]
[400637775,1767757838218,-500.0,0.00013273,2]
[400637777,1767757838228,-500.0,0.00013273,2]
[400637779,1767757838238,-500.0,0.00013273,2]
[400637781,1767757838247,-500.0,0.00013273,2]
[400637783,1767757838257,-500.0,0.00013273,2]
[400637785,1767757838266,-1000000.0,0.00013398,2]
[400637787,1767757838275,-2478.30926738,0.000134,2]
[400637789,1767757838285,-4465.24381156,0.000134,2]
[400637791,1767757838294,-227.98342001,0.00013498,2]
[400637793,1767757838303,-500.0,0.00013498,2]
[400637795,1767757838313,-500.0,0.00013498,2]
[400637797,1767757838322,-500.0,0.00013498,2]
[400637799,1767757838332,-500.0,0.00013498,2]
[400637801,1767757838342,-500.0,0.00013498,2]
[400637803,1767757838351,-500.0,0.00013498,2]
[400637805,1767757838361,-500.0,0.00013498,2]
[400637807,1767757838370,-250.22444644,0.00013498,2]
[400637809,1767757838380,-500.0,0.00013498,2]
[400637811,1767757838390,-500.0,0.00013498,2]
[400637813,1767757838400,-500.0,0.00013498,2]
[400637815,1767757838409,-500.0,0.00013498,2]
[400637817,1767757838423,-482.67153542,0.00013498,2]
[400637819,1767757838433,-264.06422624,0.00013498,2]
[400637821,1767757838443,-184.97215468,0.00013498,2]
[400637823,1767757838452,-272.96603647,0.00013498,2]
[400637825,1767757838462,-500.0,0.00013498,2]
[400637827,1767757838472,-209.73301476,0.00013498,2]
[400637829,1767757838483,-500.0,0.00013498,2]
[400637831,1767757838494,-638.92023253,0.00013498,2]
[400637833,1767757838503,-500.0,0.00013498,2]
[400637835,1767757838512,-151.0,0.000135,2]
[400637837,1767757838521,-151.0,0.000135,2]
[400637839,1767757838531,-151.0,0.000135,2]
[400637841,1767757838540,-151.0,0.000135,2]
[400637843,1767757838549,-151.0,0.000135,2]
[400637845,1767757838558,-151.0,0.000135,2]
[400637847,1767757838567,-151.0,0.000135,2]
[400637849,1767757838576,-151.0,0.000135,2]
[400637851,1767757838586,-151.0,0.000135,2]
[400637853,1767757838595,-151.0,0.000135,2]
[400637855,1767757838604,-151.0,0.000135,2]
[400637857,1767757838614,-151.0,0.000135,2]
[400637859,1767757838624,-500.0,0.000135,2]
[400637861,1767757838634,-300.0,0.00013673,2]
[400637863,1767757838644,-500.0,0.00013698,2]
[400637865,1767757838654,-500.0,0.00013698,2]
[400637867,1767757838664,-500.0,0.00013698,2]
[400637869,1767757838673,-500.0,0.00013698,2]
[400637871,1767757838683,-500.0,0.00013698,2]
[400637873,1767757838700,-500.0,0.00013698,2]
[400637875,1767757838712,-560.67660592,0.00013698,2]
[400637877,1767757838723,-1310.03,0.00013698,2]
[400637879,1767757838734,-1310.03,0.00013698,2]
[400637881,1767757838742,-1310.03,0.00013698,2]
[400637883,1767757838761,-1310.03,0.00013698,2]
[400637885,1767757838780,-1310.03,0.00013698,2]
[400637887,1767757838791,-1310.03,0.00013698,2]
[400637889,1767757838800,-1310.03,0.00013698,2]
[400637891,1767757838809,-1310.03,0.00013698,2]
[400637893,1767757838820,-1310.03,0.00013698,2]
[400637895,1767757838829,-1310.03,0.00013698,2]
[400637898,1767757838840,-1310.03,0.00013698,2]
[400637899,1767757838849,-1310.03,0.00013698,2]
[400637901,1767757838859,-1310.03,0.00013698,2]
[400637904,1767757838868,-1310.03,0.00013698,2]
[400637906,1767757838877,-1310.03,0.00013698,2]
[400637908,1767757838887,-1310.03,0.00013698,2]
[400637909,1767757838896,-1310.03,0.00013698,2]
[400637912,1767757838905,-1310.03,0.00013698,2]
[400637914,1767757838915,-1310.03,0.00013698,2]
[400637915,1767757838925,-1310.03,0.00013698,2]
[400637917,1767757838934,-1310.03,0.00013698,2]
[400637919,1767757838944,-1310.03,0.00013698,2]
[400637921,1767757838953,-1310.03,0.00013698,2]
[400637923,1767757838963,-1310.0497785,0.00013698,2]
[400637926,1767757838977,-500.0,0.00013698,2]